[Event "Romanian Team Blitz Women 2022"]
[Site "Sebes"]
[Date "2022.12.04"]
[Round "1.1"]
[White "Bulmaga, Irina"]
[Black "Voicu-Jagodzinsky, Carmen"]
[Result "1-0"]
[ECO "B46"]
[WhiteElo "2426"]
[BlackElo "2300"]
[Annotator "TA"]
[PlyCount "143"]
[EventDate "2022.12.04"]
[EventType "blitz"]
[EventCountry "ROU"]
[SourceTitle "playchess.com"]
[Source "ChessBase"]
[SourceQuality "1"]
[TimeControl "180+2"]

{[%evp 11,143,21,21,27,27,17,34,32,36,37,39,29,72,72,103,93,111,95,85,90,147,90,137,117,147,112,146,136,151,0,0,6,18,5,0,-17,26,44,53,45,65,59,45,52,49,21,37,0,38,35,41,-38,-30,-45,0,0,0,0,0,-8,-8,-8,17,14,26,30,59,0,27,17,44,0,0,0,0,0,84,0,33,0,0,0,0,-39,-28,-45,0,-543,0,-276,-49,-49,0,0,637,637,1142,385,995,251,235,228,2092,1782,1136,8,475,382,294,213,416,207,316,189,364,363,429,428,339,366,518,493,471,454,488,367,328,321,385,368,358,310,29979,29980]} 1. e4 c5 2. Nf3 {[%emt 0:03:06]} Nc6 3. Nc3 {[%emt 0:00:00]} a6 {[%emt 0:00:05]} 4. d4 {[%emt 0:00:00]} cxd4 {[%emt 0:00:01]} 5. Nxd4 {[%emt 0:00:00]} e6 {[%emt 0:00:13]} 6. Bf4 {[%emt 0:00:00]} d6 {[%emt 0:00:23]} 7. Nxc6 {[%emt 0:00:00] B46: Sicilian: Taimanov: 5 Nc3 a6.} bxc6 {[%emt 0:00:00]} 8. Qd2 {[%emt 0:00:00]} e5 {[%emt 0:00:01]} 9. Bg5 {[%emt 0:00:00][%cal Bf4g5,Bg5h4,Bh4g3,Bg3f2][%mdl 32] White is slightly better. 9.Bg5 was played by the boomers.} Nf6 {[%emt 0:00:06]} 10. O-O-O {[%emt 0:00:00][%cal Be1c1,Bc1b1,Bb1a1][%mdl 32]} h6 {[%emt 0:00:01]} 11. Bh4 {[%emt 0:00:00]} g5 {[%emt 0:00:01]} 12. Bg3 {[%emt 0:00:00] [#]} Be7 $146 {[%emt 0:00:00]} ({Predecessor:} 12... Be6 13. h4 g4 14. f3 Qa5 15. b3 Be7 16. Na4 Qxd2+ 17. Rxd2 Nd7 18. c4 f5 19. exf5 Bxf5 {½-½ (75) Duessler,S (2115)-Wagner Michel,A (2120) Germany 2019}) 13. Bc4 {[%emt 0:00:00]} a5 {[%emt 0:00:27]} 14. Kb1 {[%emt 0:00:00]} a4 {[%emt 0:00:01]} 15. a3 {[%emt 0:00:00]} Qa5 {[%emt 0:00:06]} (15... Qb6 $142) 16. f3 {[%emt 0:00:00]} (16. h4 $142 g4 17. f4) 16... Nh5 {[%emt 0:00:23]} (16... Be6 $142 17. Bxe6 fxe6) 17. Bf2 $16 {[%emt 0:00:00]} Nf4 {[%emt 0:00:05]} 18. g3 {[%emt 0:00:32]} Ne6 19. Ka1 {[%emt 0:00:00] White is more active.} Ba6 {[%emt 0:00:16]} 20. Qd3 {[%emt 0:00:00]} (20. Ba2 $16) 20... Bxc4 $11 {[%emt 0:00:22]} 21. Qxc4 {[%emt 0:00:00]} Qa6 {[%emt 0:00:01]} 22. Qxa6 {[%emt 0:00:08]} Rxa6 23. Nb1 {[%emt 0:00:00][%cal Bc3b1,Bb1d2,Bd2c4,Bc4e3,Be3f5][%mdl 32]} Kd7 {[%emt 0:00:02]} 24. Nd2 {[%emt 0:00:00]} Kc7 {[%emt 0:00:02]} 25. Nc4 {[%emt 0:00:00] Inhibits d5.} Rd8 {[%emt 0:00:03]} 26. Rd2 {[%emt 0:00:00]} (26. Kb1 $5) 26... f6 {[%emt 0:00:03]} 27. Rhd1 {[%emt 0:00:00]} h5 {[%emt 0:00:21]} 28. Ne3 {[%emt 0:00:00] Against g4} Bf8 {[%emt 0:00:03]} 29. Nf5 {[%emt 0:00:00]} g4 {[%emt 0:00:01]} 30. fxg4 {[%emt 0:00:00]} hxg4 {[%emt 0:00:01]} 31. Rd3 {[%emt 0:00:00]} (31. Be3 $14) 31... Ng5 $15 {[%emt 0:00:05]} 32. Re1 {[%emt 0:00:00]} Nf3 {[%emt 0:00:04]} (32... Kd7 $5 {[%cal Rd7e6]}) 33. Red1 {[%emt 0:00:00]} Nxh2 {[%emt 0:00:05]} 34. Bc5 $36 {[%emt 0:00:00][%cal Rc5d6][%mdl 2112] White has good play.} Nf3 {[%emt 0:00:15]} 35. Bxd6+ {[%emt 0:00:00]} Bxd6 {[%emt 0:00:01]} 36. Rxd6 {[%emt 0:00:00]} Rxd6 {[%emt 0:00:01]} 37. Rxd6 $11 {[%emt 0:00:00][%mdl 4096] Endgame KRN-KRN} Ra8 {[%emt 0:00:06]} (37... Nd4 $5 {[%cal Rd4f5]} 38. Rxf6 Nxc2+ 39. Kb1 Nd4 $14) 38. Rxf6 {[%emt 0:00:00]} Rd8 {[%emt 0:00:03]} 39. Rg6 {[%emt 0:00:00]} (39. Ka2 $14) 39... Rd1+ {[%emt 0:00:00]} 40. Ka2 {[%emt 0:00:00]} Rd2 {[%emt 0:00:03]} 41. Rxg4 {[%emt 0:00:06]} Rxc2 {[%emt 0:00:01]} 42. Rg7+ Kb6 43. Rg8 {[%emt 0:00:11]} Ne1 {[%emt 0:00:04]} (43... Re2 $11) 44. Kb1 {[%emt 0:00:02]} (44. Ne3 $1 $16 {[%cal Re3c2]} Rc1 45. Rd8) 44... Rg2 {[%emt 0:00:02]} 45. Rd8 {[%emt 0:00:09]} Nf3 {[%emt 0:00:03]} 46. Ne3 {[%emt 0:00:05]} Re2 {[%emt 0:00:03]} 47. Nc4+ {[%emt 0:00:02]} Kc5 {[%emt 0:00:01][%mdl 1024] Black has compensation.} 48. Na5 {[%emt 0:00:05]} Nd4 {[%emt 0:00:03] Hoping for ...Kb5.} 49. Nb7+ $2 {[%emt 0:00:02][%mdl 8192]} (49. Rb8 $1 $11) 49... Kc4 $2 {[%emt 0:00:01]} ({Black should play} 49... Kb6 $19 {( -> ...Re1+)} 50. Ra8 Kxb7 51. Rxa4 Rxe4) 50. Na5+ $2 {[%emt 0:00:03][%mdl 8192]} (50. Ra8 $11 {and White is okay.}) 50... Kd3 $2 {[%emt 0:00:00]} ({Black should try} 50... Kb5 $19 51. Ra8 Rxe4) 51. Nxc6 $15 {[%emt 0:00:03]} Re1+ {[%emt 0:00:04]} (51... Kxe4 $15 52. Nxd4 exd4) 52. Ka2 $11 {[%emt 0:00:01]} Rg1 $2 {[%emt 0:00:02][%mdl 8192]} (52... Kxe4 $2 53. Nxd4 Rd1 54. Ne6 $18) (52... Ke3 $11 53. Nb4 (53. Nxe5 $2 {perishes.} Nb3 $19) 53... Kxe4) 53. Nxe5+ $18 {[%emt 0:00:05]} Ke3 {[%emt 0:00:02] [#] And now ...Nb3 would win.} 54. Nc4+ $2 {[%emt 0:00:02]} (54. Rxd4 $1 Rg2 (54... Kf2 55. Rxa4) 55. Rxa4 Rxg3 56. Rc4) 54... Kxe4 $2 {[%emt 0:00:03]} (54... Kd3 55. Nb6 Kxe4 56. Nxa4 Nc6) 55. Re8+ $2 {[%emt 0:00:05]} (55. Nd2+ Ke3 {[#]} 56. Rxd4 $1 {[%mdl 512]}) 55... Kd3 {[%emt 0:00:01][%cal Od4b3]} 56. Ne5+ {[%emt 0:00:01]} Kc2 $2 {[%emt 0:00:03]} (56... Ke4) 57. Rc8+ {[%emt 0:00:02]} Kd1 {[%emt 0:00:02]} 58. g4 $2 {[%emt 0:00:03]} (58. Rd8 $18 Rg2 59. Rxd4+ Kc2 60. Rxa4) 58... Nc2 {[%emt 0:00:02][%mdl 8192]} (58... Nb3 $1 $11) 59. b4 {[%emt 0:00:03]} axb3+ {[%emt 0:00:02]} 60. Kxb3 {[%emt 0:00:01]} Nd4+ {[%emt 0:00:00]} (60... Rg3+ 61. Rc3 Rxc3+ 62. Kxc3 Nxa3) 61. Kb4 {[%emt 0:00:02]} (61. Kc3 $142 Ne2+ 62. Kb4) 61... Ke2 {[%emt 0:00:01]} (61... Nc2+ {is a better defense.} 62. Kb3 Rg3+ 63. Rc3 Rxc3+ 64. Kxc3 Nxa3) 62. Rd8 {[%emt 0:00:01]} (62. Rc4 $142 Rb1+ 63. Kc5 Ne6+ 64. Kd5) 62... Nc2+ $2 {[%emt 0:00:02]} (62... Ne6) 63. Kb3 {[%emt 0:00:02]} Ne3 {[%emt 0:00:01]} 64. a4 {[%emt 0:00:02]} Rb1+ {[%emt 0:00:02]} 65. Kc3 {[%emt 0:00:01]} Rc1+ {[%emt 0:00:01]} (65... Nd1+ {was worth a try.} 66. Kc4 Ne3+ 67. Kc5 Rc1+ 68. Kb6 Rb1+ 69. Ka5 Rc1) 66. Kb4 {[%emt 0:00:01]} Rb1+ {[%emt 0:00:02]} 67. Kc5 {[%emt 0:00:02]} Ra1 {[%emt 0:00:02]} 68. Ra8 {[%emt 0:00:02]} Rc1+ {[%emt 0:00:37]} 69. Kb5 {[%emt 0:00:03]} Rb1+ {[%emt 0:00:00]} 70. Ka5 {[%emt 0:00:01]} Rg1 {[%emt 0:00:00]} 71. Re8 {[%emt 0:00:02] Nc4 is the strong threat.} Kd2 $2 {[%emt 0:00:00]} (71... Nd5 $18 72. g5 Nc7) 72. Nf3+ {[%emt 0:00:02] Never resign too early!   Weighted Error Value: White=0.73/Black=0.60} 1-0

[Event "Romanian Team Blitz Women 2022"]
[Site "Sebes"]
[Date "2022.12.04"]
[Round "1.2"]
[White "Ionica, Iulia-Ionela"]
[Black "Cosma, Elena-Luminita"]
[Result "1/2-1/2"]
[ECO "C01"]
[WhiteElo "2177"]
[BlackElo "2244"]
[Annotator "TA"]
[PlyCount "127"]
[EventDate "2022.12.04"]
[EventType "blitz"]
[EventCountry "ROU"]
[SourceTitle "playchess.com"]
[Source "ChessBase"]
[SourceQuality "1"]
[TimeControl "180+2"]

{[%evp 9,127,0,0,0,0,4,0,0,0,4,18,28,35,0,13,25,43,22,34,39,39,32,47,0,47,47,41,51,53,48,51,-4,-14,0,14,12,17,10,26,0,0,-37,37,-83,-85,-87,-80,-137,-99,-97,-82,-90,-87,-94,-72,-120,-104,-135,-93,-184,-178,-249,-101,-168,-168,-176,-176,-231,-194,-208,-210,-187,-199,-313,-131,-119,271,264,223,235,738,727,5306,581,564,480,5820,6079,5081,5057,5285,5214,1368,0,0,0,0,0,0,0,0,0,0,0,0,0,0,0,0,0,0,0,0,0,0,0,0,0,0,0]} 1. e4 {[%emt 0:00:02]} e6 {[%emt 0:00:00]} 2. d4 {[%emt 0:00:01]} d5 {[%emt 0:00:01]} 3. Nc3 {[%emt 0:00:01]} Nf6 {[%emt 0:00:01]} 4. exd5 {[%emt 0:00:02]} exd5 {[%emt 0:00:02]} 5. Bg5 {[%emt 0:00:02]} c6 {[%emt 0:00:02]} 6. Qd2 {[%emt 0:00:03] C01: French: Exchange Variation.} h6 {[%emt 0:00:11]} 7. Bf4 {[%emt 0:00:16] [#]} Bd6 $146 {[%emt 0:00:03]} ({Predecessor:} 7... Bb4 8. Bd3 O-O 9. Nge2 c5 10. dxc5 Kh8 11. a3 Bxc5 12. O-O Nc6 13. Rad1 Be6 14. h3 a6 15. Ng3 b5 16. Bxh6 gxh6 17. Qxh6+ Kg8 18. Nh5 {1-0 (18) Voicu Jagodzinsky,C (2247)-Stangl,A (2005) Magdeburg 2021}) 8. O-O-O {[%emt 0:00:12]} Bxf4 {[%emt 0:00:07]} 9. Qxf4 {[%emt 0:00:02]} Be6 {[%emt 0:00:03]} 10. Bd3 {[%emt 0:00:13]} Nbd7 {[%emt 0:00:02]} 11. Nf3 {[%emt 0:00:01]} Qb8 {[%emt 0:00:15]} (11... Nh5 $5 {[%cal Rh5f4]} 12. Qd6 Ndf6 $11) 12. Qd2 {[%emt 0:00:10]} Qd6 {[%emt 0:00:08]} 13. Rde1 {[%emt 0:00:17]} O-O-O {[%emt 0:00:31]} 14. Ne5 {[%emt 0:00:11]} Qc7 {[%emt 0:00:16]} 15. f4 {[%emt 0:00:03][%cal Bf2f4,Bf4f5,Bf5e6][%mdl 32] aiming for f5.} Nxe5 $1 {[%emt 0:00:26]} 16. dxe5 {[%emt 0:00:21]} (16. fxe5 $14 {is more appropriate.} Nd7 17. Rhf1) 16... Ng8 {[%emt 0:00:13]} (16... d4 $1 $11 17. Nd1 Nd7) 17. f5 {[%emt 0:00:03]} Bd7 {[%emt 0:00:01][%cal Be6d7,Bd7e8,Be8g6][%mdl 32]} 18. e6 {[%emt 0:00:10]} fxe6 {[%emt 0:00:01]} 19. fxe6 {[%emt 0:00:02]} Be8 {[%emt 0:00:02]} 20. Bf5 {[%emt 0:00:27]} (20. Qf2 $14) 20... Ne7 $11 {[%emt 0:00:01]} 21. Bh3 {[%emt 0:00:07]} Bg6 {[%emt 0:00:04]} 22. Qd4 {[%emt 0:00:07][%csl LRa7,LRg7]} Kb8 {[%emt 0:00:44][%cal Bc8b8,Bb8c7,Bc7d6][%mdl 32]} 23. Rhf1 {[%emt 0:00:06]} Rhg8 {[%emt 0:00:08]} 24. Na4 {[%emt 0:00:15]} b6 $1 {[%emt 0:00:08] Against Nc5} 25. Nc3 {[%emt 0:00:02]} Qd6 {[%emt 0:00:07]} ({Better is} 25... Qxh2 $15 26. Kb1 Qc7) 26. Qe5 {[%emt 0:00:15]} (26. g3 $1 $14 {stays ahead.}) 26... Qxe5 $17 {[%emt 0:00:02]} 27. Rxe5 {[%emt 0:00:01]} Kc7 {[%emt 0:00:02]} 28. Ne2 {[%emt 0:00:02]} (28. Ree1 $142) 28... Kd6 {[%emt 0:00:01]} 29. Re3 {[%emt 0:00:00]} Rgf8 $36 {[%emt 0:00:01][%mdl 2048] Black has strong initiative.} 30. Ref3 {[%emt 0:00:03]} Rxf3 {[%emt 0:00:01]} 31. Rxf3 {[%emt 0:00:00]} Rc8 {[%emt 0:00:04]} 32. Re3 {[%emt 0:00:03]} ({White should try} 32. g4) 32... Rf8 {[%emt 0:00:01]} 33. Kd2 {[%emt 0:00:04]} Bf5 {[%emt 0:00:04]} 34. Nd4 {[%emt 0:00:07]} (34. Rf3 $17 Rf6 35. Bxf5 Rxf5 36. Rxf5 Nxf5 37. g4) 34... Bxh3 $19 {[%emt 0:00:02]} 35. Rxh3 {[%emt 0:00:04][%mdl 4096] Endgame KRN-KRN} (35. gxh3 {was worth a try.} Rf2+ 36. Re2) 35... c5 {[%emt 0:00:01]} (35... Rf2+ $19 36. Kd3 Rxg2) 36. Nf3 {[%emt 0:00:02]} (36. Nb5+ $17 Kxe6 37. Re3+ Kd7 38. Nxa7) 36... Kxe6 {[%emt 0:00:02]} 37. Rh5 {[%emt 0:00:04]} Nf5 {[%emt 0:00:02]} 38. g4 {[%emt 0:00:04]} (38. Rh3 $142) 38... Nd6 {[%emt 0:00:02]} 39. Re5+ {[%emt 0:00:01]} Kd7 {[%emt 0:00:02]} 40. Ke2 {[%emt 0:00:03]} d4 {[%emt 0:00:02]} 41. g5 {[%emt 0:00:03]} (41. b4 $142) 41... hxg5 {[%emt 0:00:01]} (41... Nc4 $19 {is more deadly.} 42. Re4 Nxb2 43. gxh6 gxh6) 42. Rxg5 $17 {[%emt 0:00:01]} Rf7 $2 {[%emt 0:00:02][%mdl 8192]} (42... Re8+ $17 {stays on course.} 43. Kd1 Re7) 43. Ne5+ $18 {[%emt 0:00:02]} Ke6 {[%emt 0:00:01] White must now prevent ...Rf5.} 44. Nxf7 {[%emt 0:00:01]} Nxf7 {[%emt 0:00:02]} (44... Kxf7 45. Kd3 Kf6) 45. Rxg7 {[%emt 0:00:01] KR-KN} Kf6 {[%emt 0:00:02] [#]} 46. Rg4 {[%emt 0:00:02]} (46. Rxf7+ $142 $1 {[%mdl 512]} Kxf7 47. Kd3) 46... Ne5 {[%emt 0:00:02]} 47. Re4 {[%emt 0:00:02][%cal Oe4e5] Rxe5! is the strong threat.} Kf5 {[%emt 0:00:01] [#]} (47... Nc6 $142 48. Rf4+ Kg7 49. Rg4+ Kf7) 48. Rxe5+ $1 {[%emt 0:00:03][%mdl 512]} Kxe5 {[%emt 0:00:01] KP-KP} (48... Kf6 49. Rh5) 49. Kd3 {[%emt 0:00:00]} Kd5 {[%emt 0:00:01]} 50. h4 {[%emt 0:00:01]} c4+ {[%emt 0:00:01] [#]} 51. Kd2 $2 {[%emt 0:00:01]} ({White has to play} 51. Ke2 $1 $18 a6 52. b3) 51... Ke4 $11 {[%emt 0:00:01] The position is equal.} 52. Ke2 {[%emt 0:00:02]} (52. h5 $5 Kf5 $8 53. Ke2 $11) 52... Kf4 {[%emt 0:00:01]} 53. b3 {[%emt 0:00:02]} (53. h5 $5 Kg5 $8 54. b3 $11) 53... b5 {[%emt 0:00:01]} 54. a4 {[%emt 0:00:02]} (54. h5 $5 Kg5 $8 55. bxc4 bxc4 56. Kf3 Kxh5 57. Ke4 $11) 54... a6 {[%emt 0:00:01][%cal Ba7a6,Ba6b5,Bb5c4][%mdl 32]} 55. axb5 {[%emt 0:00:01]} axb5 {[%emt 0:00:00]} 56. bxc4 {[%emt 0:00:01]} bxc4 {[%emt 0:00:01] KPP-KPP} 57. h5 {[%emt 0:00:03] White threatens h6 and mate.} Kg5 {[%emt 0:00:01] Against h6} 58. Kf3 {[%emt 0:00:01]} Kxh5 {[%emt 0:00:03] KPP-KP} 59. Ke4 {[%emt 0:00:00]} d3 {[%emt 0:00:01]} 60. Ke3 {[%emt 0:00:08]} dxc2 {[%emt 0:00:32] ( -> ...c3)} 61. Kd2 {[%cal Be3d2,Bd2c2,Bc2c3,Bc3c4][%mdl 32] Prevents c3+.} Kg4 {[%emt 0:00:00]} 62. Kxc2 {[%emt 0:00:02]} Kf5 {[%emt 0:00:00]} 63. Kc3 {[%emt 0:00:01]} Ke5 {[%emt 0:00:00]} 64. Kxc4 {[%emt 0:00:21] Black escapes into a draw.   Weighted Error Value: White=0.40/Black=0.29 (precise)} 1/2-1/2

[Event "Romanian Team Blitz Women 2022"]
[Site "Sebes"]
[Date "2022.12.04"]
[Round "1.3"]
[White "Ciolacu, Alessia-Mihaela"]
[Black "Bucur, Denisa-Andreea"]
[Result "1-0"]
[ECO "D27"]
[WhiteElo "2097"]
[BlackElo "1953"]
[Annotator "TA"]
[PlyCount "65"]
[EventDate "2022.12.04"]
[EventType "blitz"]
[EventCountry "ROU"]
[SourceTitle "playchess.com"]
[Source "ChessBase"]
[SourceQuality "1"]
[TimeControl "180+2"]

{[%evp 14,65,29,43,33,37,48,34,52,45,43,40,139,88,89,98,103,58,60,1,5,-6,133,128,133,137,146,128,199,190,236,246,392,413,526,521,534,541,631,623,1104,613,659,688,670,645,677,657,718,718,1293,1148,2133,2131]} 1. d4 {[%emt 0:00:02]} d5 {[%emt 0:00:00]} 2. c4 {[%emt 0:00:02]} dxc4 {[%emt 0:00:01]} 3. e3 {[%emt 0:00:01]} Nf6 {[%emt 0:00:02]} 4. Nf3 {[%emt 0:00:02]} e6 {[%emt 0:00:01]} 5. Bxc4 {[%emt 0:00:03]} a6 {[%emt 0:00:01]} 6. O-O {[%emt 0:00:03]} Nbd7 {[%emt 0:00:01]} 7. a4 {[%emt 0:00:02]} c5 {[%emt 0:00:09]} 8. Nc3 {[%emt 0:00:01]} cxd4 {[%emt 0:00:11] D27: Queen's Gambit Accepted: Classical main line: 7 e4!? and 7 a4.} 9. exd4 {[%emt 0:00:03]} Nb6 {[%emt 0:00:05]} 10. Bb3 {[%emt 0:00:21] a5 is the strong threat.} Nbd5 {[%emt 0:00:24] [#] White is slightly better.} 11. a5 $146 {[%emt 0:00:03]} ({Predecessor:} 11. Bg5 Be7 12. Ne5 O-O 13. Qf3 Nb4 14. Rad1 Nc6 15. Rfe1 Qb6 16. Ne4 Nxd4 17. Rxd4 Qxd4 18. Nxf6+ gxf6 19. Bxf6 Bxf6 20. Qxf6 {1-0 (32) Shinkevich,V (2518)-Pushin,V (2338) Izhevsk 2009}) 11... Bb4 {[%emt 0:00:08]} 12. Bxd5 {[%emt 0:00:12]} Bxc3 {[%emt 0:00:28]} (12... Nxd5 $14 13. Qa4+ Bd7) 13. Bxe6 {[%emt 0:00:18]} (13. bxc3 $142 Qxd5 14. Ne5) 13... Bxe6 $16 {[%emt 0:00:16]} 14. bxc3 {[%emt 0:00:04]} O-O {[%emt 0:00:03]} 15. Ne5 {[%emt 0:00:32]} Rc8 {[%emt 0:00:14]} 16. Ba3 {[%emt 0:00:12]} (16. Qd3 $14) 16... Re8 $11 {[%emt 0:00:04]} 17. Bc5 {[%emt 0:00:03]} (17. Bb4 {simplifies} Nd5 18. Qd2 Nxb4 19. cxb4 Qd6 20. Rac1) 17... Qd5 {[%emt 0:00:39]} (17... Ne4 $11) 18. c4 $36 {[%emt 0:00:06][%mdl 2048] White has strong initiative. White stays focused until the end.} Qe4 {[%emt 0:00:01]} 19. Re1 {[%emt 0:00:06]} Qh4 {[%emt 0:00:05]} 20. Ra3 {[%emt 0:00:13] Threatens to win with Rae3.} Bg4 {[%emt 0:00:14]} (20... Rxc5 $2 21. dxc5 h5 22. Rb3 $18) (20... Nd7 $16) 21. f3 {[%emt 0:00:30] [#] Black must now prevent g3.} Bf5 {[%emt 0:00:14]} (21... Be6 $142 22. g3 Qg5) 22. Rae3 $18 {[%emt 0:00:02]} Red8 {[%emt 0:00:06]} (22... Qg5 $142 23. g3 Nh5) 23. Qb3 {[%emt 0:00:09]} h5 {[%emt 0:00:14]} 24. Qxb7 {[%emt 0:00:03] White is clearly winning.} Be6 {[%emt 0:00:01]} 25. Bb6 {[%emt 0:00:07]} Rb8 {[%emt 0:00:04]} 26. Qxa6 {[%emt 0:00:03]} Rxd4 {[%emt 0:00:03]} 27. Bxd4 {[%emt 0:00:06]} Qxd4 {[%emt 0:00:01]} 28. Nc6 {[%emt 0:00:02][%csl LRb8,LRd4]} Bxc4 {[%emt 0:00:04] [#] And now ...Qxe3+ would win.} 29. Nxd4 {[%emt 0:00:15]} Bxa6 {[%emt 0:00:01]} 30. Rb3 {[%emt 0:00:04] Against Rb4} Rd8 {[%emt 0:00:02]} 31. Nc6 {[%emt 0:00:01]} Rd5 {[%emt 0:00:01]} 32. Rb6 {[%emt 0:00:03] Hoping for Ne7+.} Bc4 {[%emt 0:00:03]} 33. Ne7+ {[%emt 0:00:02] Weighted Error Value: White=0.26 (precise) /Black=0.51} 1-0

[Event "Romanian Team Blitz Women 2022"]
[Site "Sebes"]
[Date "2022.12.04"]
[Round "1.4"]
[White "Peptan, Corina-Isabela"]
[Black "Sariteanu, Sabina"]
[Result "1-0"]
[ECO "A34"]
[WhiteElo "2351"]
[BlackElo "1752"]
[Annotator "TA"]
[PlyCount "69"]
[EventDate "2022.12.04"]
[EventType "blitz"]
[EventCountry "ROU"]
[SourceTitle "playchess.com"]
[Source "ChessBase"]
[SourceQuality "1"]
[TimeControl "180+2"]

{[%evp 14,68,51,42,68,60,106,48,71,39,82,26,18,27,25,7,60,29,28,34,22,10,135,14,158,160,454,454,416,197,323,219,204,175,385,147,322,297,308,293,281,245,320,311,362,287,308,250,341,364,345,343,708,416,29998,29999,29999]} 1. d4 {[%emt 0:00:03]} Nf6 {[%emt 0:00:01]} 2. c4 {[%emt 0:00:01]} d6 {[%emt 0:00:02]} 3. Nc3 {[%emt 0:00:02]} g6 {[%emt 0:00:02]} 4. g3 {[%emt 0:00:01]} Bg7 {[%emt 0:00:01]} 5. Bg2 {[%emt 0:00:01]} O-O {[%emt 0:00:02]} 6. e3 {[%emt 0:00:03]} c5 {[%emt 0:00:02]} 7. Nge2 {[%emt 0:00:01]} Na6 {[%emt 0:00:01]} 8. O-O {[%emt 0:00:02]} Nc7 {[%emt 0:00:01] A34: Symmetrical English: 2 Nc3, lines with ...d5.} 9. b3 {[%emt 0:00:03]} a6 {[%emt 0:00:02]} (9... Rb8 $14 {feels stronger.}) 10. Bb2 {[%emt 0:00:02]} ({White should play} 10. dxc5 $16 dxc5 11. Qxd8 Rxd8 12. Ba3) 10... Rb8 {[%emt 0:00:01] [#] White is slightly better.} 11. Rc1 $146 {[%emt 0:00:11]} ({Predecessor:} 11. dxc5 dxc5 12. Na4 Qxd1 13. Raxd1 b6 14. Rd2 Bb7 15. Bxb7 Rxb7 16. Bxf6 Bxf6 17. Rd7 {0-1 (63) Krasenkova,I (2171)-Jedryczka,K (2265) Warsaw 2008}) 11... b5 {[%emt 0:00:02]} 12. cxb5 {[%emt 0:00:20]} ({Better is} 12. dxc5 $16 dxc5 13. Nd5) 12... axb5 $11 {[%emt 0:00:01]} 13. dxc5 {[%emt 0:00:02]} dxc5 {[%emt 0:00:02]} 14. Nf4 {[%emt 0:00:08]} e6 {[%emt 0:00:14]} (14... e5 $11 15. Nfd5 Nfxd5 16. Nxd5 Nxd5 17. Bxd5 (17. Qxd5 c4 $11) 17... Bh3) 15. Qe2 {[%emt 0:00:02]} (15. Qc2 {looks sharper.} Qe7 16. Nce2 Na6 17. Be5) 15... Qe7 {[%emt 0:00:04]} 16. Rfd1 {[%emt 0:00:03]} Ba6 {[%emt 0:00:06] [#] ...b4 is the strong threat.} 17. Qc2 {[%emt 0:00:05]} g5 {[%emt 0:00:07]} (17... c4 $11 {remains equal.}) 18. Nfe2 {[%emt 0:00:03] White has more active pieces.} (18. Nd3 $16) 18... Ng4 {[%emt 0:00:14]} (18... Rfc8 $11) 19. Ne4 $16 {[%emt 0:00:07]} c4 $2 {[%emt 0:00:12]} (19... Bxb2 $16 20. Qxb2 Bb7) 20. Bxg7 $18 {[%emt 0:00:03]} Kxg7 {[%emt 0:00:02]} 21. Qc3+ {[%emt 0:00:13]} (21. Nd4 $142 Ne5 22. f4 gxf4 23. gxf4) 21... f6 {[%emt 0:00:03]} (21... e5 {was called for.} 22. bxc4 bxc4) 22. bxc4 {[%emt 0:00:17]} (22. Nxg5 b4 23. Qd4 Nxf2 24. Kxf2 e5 $14) 22... bxc4 {[%emt 0:00:02]} 23. Nxg5 {[%emt 0:00:04][%cal Oe2d4] aiming for Nd4!} Nd5 $2 {[%emt 0:00:04] [#]} (23... Kh8 24. Nf3 Nd5) 24. Qa1 $2 {[%emt 0:00:01]} ({But not} 24. Bxd5 exd5 25. Nd4 (25. Rxd5 Kg8 $16) 25... Kg8 $18) (24. Nxe6+ $1 $18 {[%mdl 512]} Qxe6 25. Bxd5) 24... c3 $2 {[%emt 0:00:04] Loses the game.} (24... Kh8 $16) 25. Nxc3 {[%emt 0:00:05]} Nxc3 {[%emt 0:00:10]} (25... Ndxe3 $2 26. fxe3 Kg8 27. Bh3) 26. Qxc3 {[%emt 0:00:02]} Rfc8 {[%emt 0:00:12]} 27. Qd4 {[%emt 0:00:02]} Rxc1 {[%emt 0:00:28]} 28. Rxc1 {[%emt 0:00:02] Black must now prevent Nxe6+. Dancing on a razor blade.} Ne5 {[%emt 0:00:13]} 29. Nf3 {[%emt 0:00:01][%cal Bg5f3,Bf3h4,Bh4f5][%mdl 32]} Nd3 {[%emt 0:00:03]} 30. Rd1 {[%emt 0:00:07]} e5 {[%emt 0:00:08]} 31. Qg4+ {[%emt 0:00:02]} Kh8 {[%emt 0:00:07]} 32. Nh4 {[%emt 0:00:05]} Rb2 $2 {[%emt 0:00:06]} (32... Rg8 33. Qf3 Nc5) 33. Nf5 {[%emt 0:00:20]} Nxf2 {[%emt 0:00:21]} (33... Qf8 $18 34. a4 e4) 34. Rd8+ {[%emt 0:00:11]} Qxd8 {[%emt 0:00:04]} 35. Qg7# {[%emt 0:00:01] Weighted Error Value: White=0.71/Black=0.93} 1-0